Cogmind - Beta 10.2 @@@ ROGUE MODE // 2021.07.31 @ 05:07:09 Player: leiavoia Result: Destroyed by Y-45 Defender with Beam Rifle Performance ------------- Evolutions (2) 1000 Regions Visited (4) 800 Robots Destroyed (32) 160 Value Destroyed (786) 786 Prototype IDs (6) 120 Alien Tech Used (0) 0 Bonus (0) 0 TOTAL SCORE: 2866 Bonus ------- None Cogmind --------- Core Integrity 0/550 Matter 300/300 Energy 100/100 System Corruption 3% Temperature Cool (9) Movement Core (600) Ox11 Location -8/Materials Parts ------- > --- POWER (1) -------- (None) > --- PROPULSION (3) --- (None) > --- UTILITY (4) ------ Large Storage Unit Large Storage Unit > --- WEAPON (3) ------- Flail > --- INVENTORY (16) --- Ion Engine Light Ion Engine Improved Heat Sink Improved Signal Interpreter Improved Terrain Scanner Terrain Scan Processor Long-range Tractor Beam Peak State ------------ > --- POWER ------------ Light Nuclear Core > --- PROPULSION ------- Aerolev Unit Aerolev Unit Aerolev Unit > --- UTILITY ---------- Large Storage Unit Large Storage Unit Transmission Jammer Improved Light Armor Plating > --- WEAPON ----------- Particle Gun Flail > --- INVENTORY -------- Ion Engine Light Ion Engine Wheel Aerolev Unit Improved Heat Sink Improved Signal Interpreter Improved Terrain Scanner Terrain Scan Processor Long-range Tractor Beam [Rating: 28] Favorites ----------- Power Light Ion Engine Engine Light Ion Engine Power Core Light Nuclear Core Propulsion Wheel Treads Light Treads Wheel Wheel Hover Unit Aerolev Unit Utility Large Storage Unit Device Sensor Array Storage Large Storage Unit Protection Improved Light Armor Plating Weapon EM Pulse Gun Energy Gun EM Pulse Gun Ballistic Gun Assault Rifle Launcher Grenade Launcher Special Weapon Mining Laser Impact Weapon Flail Build | -11 -10 -10 -9 -8 ------- Run | Scr Mat Min Mat Mat Slots Evolved 4 | . . . 2 2 Power . | . . . . . Propulsion 1 | . . . . 1 Utility 2 | . . . 2 . Weapon 1 | . . . . 1 Parts Attached 51 | 6 12 5 4 24 Power 5 | 1 2 1 . 1 Engine 3 | 1 1 1 . . Core 2 | . 1 . . 1 Reactor . | . . . . . Propulsion 13 | 2 2 1 1 7 Treads 5 | . 2 1 . 2 Leg . | . . . . . Wheel 4 | 2 . . 1 1 Hover 4 | . . . . 4 Flight . | . . . . . Utility 15 | 1 4 . 2 8 Device 8 | . 2 . 1 5 Storage 4 | 1 2 . 1 . Processor . | . . . . . Hackware . | . . . . . Protection 3 | . . . . 3 Artifact . | . . . . . Weapon 18 | 2 4 3 1 8 Energy Gun 5 | 1 1 . . 3 Energy Cannon . | . . . . . Ballistic Gun 10 | 1 2 2 1 4 Ballistic Cannon . | . . . . . Launcher 1 | . . 1 . . Special Weapon 1 | . 1 . . . Impact Weapon 1 | . . . . 1 Slashing Weapon . | . . . . . Piercing Weapon . | . . . . . Special Melee Weapon . | . . . . . Unidentified Prototypes 1 | . . . . 1 Parts Lost 28 | . 2 3 . 23 Power 3 | . 1 1 . 1 Propulsion 10 | . 1 1 . 8 Utility 6 | . . . . 6 Weapon 9 | . . 1 . 8 Highest Loss Streak 9 | . 1 2 . 9 Average Slot Usage (%) 92 | . 98 98 100 78 Engine 8 | . 8 13 11 3 Core 2 | . 4 . . 3 Treads 10 | . 6 25 11 7 Wheel 10 | . 21 1 10 4 Hover 2 | . . . . 8 Device 14 | . 13 14 22 12 Storage 16 | . 14 14 22 18 Protection 1 | . . . . 3 Energy Gun 7 | . 1 14 11 9 Ballistic Gun 14 | . 26 9 11 6 Impact Weapon 1 | . . . . 3 Naked Turns . | . . . . . Heaviest Build 46 | 10 26 26 42 46 Greatest Support 40 | 20 20 40 40 40 Greatest Overweight (x) 4 | . 2 2 4 4 Average Overweight (x) 1 | . 1 . 3 2 Largest Inventory Capacity 16 | 6 10 10 16 16 Average Capacity 12 | 5 9 10 15 16 Most Carried 16 | 4 10 10 15 16 Average Carried 9 | 2 8 8 12 11 Final Capacity 16 | 6 10 10 16 16 Final Carried 15 | 4 10 9 15 7 Class Distribution -------------------- 89% | Mutant 10% | Skirmisher Dominant Class ---------------- Mutant | -10/Materials Mutant | -10/Mines Mutant | -9/Materials Mutant | -8/Materials Resources | -11 -10 -10 -9 -8 ----------- Run | Scr Mat Min Mat Mat Matter Collected 915 | 214 296 107 . 298 Remotely . | . . . . . Salvage Created 1218 | . 483 107 . 628 Parts 61 | . 21 2 . 38 Haulers Intercepted 2 | . 1 . . 1 Recyclers Shooed 3 | . 1 1 . 1 Parts Field Recycled . | . . . . . Retrieved Matter . | . . . . . Parts Self-Destructed . | . . . . . Prevented . | . . . . . Kills | -11 -10 -10 -9 -8 ------- Run | Scr Mat Min Mat Mat Combat Hostiles Destroyed 26 | . 10 5 . 11 Guns 21 | . 10 3 . 8 AOE 5 | . . 2 . 3 Classes Destroyed 9 | . 4 3 . 2 Worker 1 | . . 1 . . Builder 2 | . . . . 2 Hauler 2 | . 1 . . 1 Recycler 3 | . 1 1 . 1 Watcher 2 | . . . . 2 Swarmer 7 | . 2 . . 5 Grunt 14 | . 8 . . 6 Demolisher 1 | . . 1 . . Assembled 4 | . . 4 . . Best Kill Streak 8 | . 3 3 . 8 Combat Bots Only 5 | . 2 3 . 5 Max Kills in Single Turn 2 | . 1 2 . 2 Gunslinging . | . . . . . Exploded 2 | . . 1 . 2 Melee . | . . . . . Uniques/NPCs Destroyed . | . . . . . Combat | -11 -10 -10 -9 -8 -------- Run | Scr Mat Min Mat Mat Damage Taken 3288 | . 386 216 . 2686 Core 607 | . 39 10 . 558 Absorbed by Shields . | . . . . . Core Remaining (%) 93 | 100 . 80 100 . Volleys Fired 88 | . 40 16 . 32 Largest 3 | . 2 2 . 3 Hottest 125 | . 40 70 . 125 Shots Fired 189 | . 80 24 . 85 Gun 185 | . 80 20 . 85 Cannon . | . . . . . Launcher 4 | . . 4 . . Special . | . . . . . Kinetic 122 | . 80 4 . 38 Thermal 5 | . . . . 5 Explosive 4 | . . 4 . . Electromagnetic 58 | . . 16 . 42 Robot Hit Streak 9 | . 6 6 . 9 Robot Miss Streak 4 | . 4 3 . 4 Penetration Max . | . . . . . Secondary Targets 5 | . 2 . . 3 Max Gunslinging Chain 1 | . 1 . . 1 Shots Hit Robots 110 | . 47 12 . 51 Core Hits 70 | . 24 16 . 30 Critical Hits 2 | . 2 . . . Critical Kills 1 | . 1 . . . Critical Parts Destroyed 1 | . 1 . . . Melee Attacks 8 | . . . . 8 Impact 8 | . . . . 8 Slashing . | . . . . . Piercing . | . . . . . Sneak Attacks . | . . . . . Combat Hostiles . | . . . . . Follow-up Attacks . | . . . . . Damage Inflicted 1852 | . 584 272 . 996 Guns 1501 | . 584 154 . 763 Cannons . | . . . . . Explosions 304 | . . 118 . 186 Melee 15 | . . . . 15 Ramming 32 | . . . . 32 Kinetic 896 | . 584 21 . 291 Thermal 217 | . . . . 217 Explosive 118 | . . 118 . . Electromagnetic 574 | . . 133 . 441 Impact 15 | . . . . 15 Slashing . | . . . . . Piercing . | . . . . . Highest Corruption 3 | . . . . 3 Average Corruption 2 | . . . . 2 Corruption Purged . | . . . . . Effects 2 | . . . . 2 Message Errors 1 | . . . . 1 Energy Discharges 1 | . . . . 1 Overload Shots . | . . . . . Overflow Damage 15 | . . 8 . 7 Projectiles . | . . . . . Explosions 15 | . . 8 . 7 Melee . | . . . . . Knockbacks . | . . . . . Impact . | . . . . . Kinetic . | . . . . . Secondary . | . . . . . Self-Inflicted Damage 55 | . . 40 . 15 Shots 1 | . . 1 . . Rammed 5 | . . . . 5 Targets Rammed 5 | . . . . 5 Kicked . | . . . . . Crushed . | . . . . . Highest Temperature 234 | . 20 49 . 234 Average Temperature 62 | . 4 19 . 90 Received Heat Transfer 1550 | . 156 80 . 1314 Effects 2 | . . . . 2 Interference 2 | . . . . 2 Siege Activations . | . . . . . Robots Corrupted . | . . . . . Combat Hostiles . | . . . . . Parts Fried . | . . . . . Impact Corruptions . | . . . . . Robots Melted . | . . . . . Combat Hostiles . | . . . . . Parts Melted . | . . . . . Heat Transferred 424 | . . . . 424 Parts Sabotaged . | . . . . . Parts Stolen . | . . . . . Parts Stripped . | . . . . . Power Chain Reactions 2 | . . . . 2 Missiles Intercepted . | . . . . . Alert | -11 -10 -10 -9 -8 ------- Run | Scr Mat Min Mat Mat Peak Influence 435 | . 281 71 72 435 Initial 31 | . . 31 27 29 Average 126 | . 102 61 53 243 Maximum Alert Level 2 | . 1 . . 2 Low Security (%) 74 | 100 82 100 100 34 Level 1 21 | . 17 . . 52 Level 2 3 | . . . . 12 Level 3 . | . . . . . Level 4 . | . . . . . Level 5 . | . . . . . High Security . | . . . . . Max Security . | . . . . . Squads Dispatched 8 | . 2 . . 6 Investigation 5 | . 2 . . 3 Extermination . | . . . . . Reinforcement 3 | . . . . 3 Assault . | . . . . . Garrison . | . . . . . Intercept . | . . . . . Construction Impeded . | . . . . . Haulers Reinforced . | . . . . . Stealth | -11 -10 -10 -9 -8 --------- Run | Scr Mat Min Mat Mat Distress Signals 5 | . 2 . 1 2 Communications Jammed . | . . . . . Distress Signals . | . . . . . Times Spotted 70 | . 13 9 3 45 Peak Tracking Total 11 | . 5 8 3 11 Tactical Retreats 9 | . 1 . . 8 Traps | -11 -10 -10 -9 -8 ------- Run | Scr Mat Min Mat Mat Traps Triggered 1 | . 1 . . . Indirectly . | . . . . . Trap Hack Attempts . | . . . . . Triggered . | . . . . . Disarmed . | . . . . . Reprogrammed . | . . . . . Reused . | . . . . . Traps Extracted . | . . . . . Installed . | . . . . . Triggered 1 | . . . . 1 Machines | -11 -10 -10 -9 -8 ---------- Run | Scr Mat Min Mat Mat Machines Disabled . | . . . . . Max in Single Turn . | . . . . . Machines Sabotaged . | . . . . . Garrisons Compromised . | . . . . . Overloaded Fab Kills . | . . . . . Fab Network Shutdowns . | . . . . . Hacking | -11 -10 -10 -9 -8 --------- Run | Scr Mat Min Mat Mat Machines Accessed 8 | . 3 . 2 3 Terminals 7 | . 3 . 2 2 Fabricators . | . . . . . Repair Stations . | . . . . . Recycling Units 1 | . . . . 1 Scanalyzers . | . . . . . Garrison Access . | . . . . . Total Hacks 22 | . 7 . 6 9 Successful 11 | . 5 . 3 3 Failed 11 | . 2 . 3 6 Catastrophic 2 | . . . . 2 Database Lockouts . | . . . . . Manual 8 | . . . 1 7 Terminals 21 | . 7 . 6 8 Fabricators . | . . . . . Repair Stations . | . . . . . Recycling Units 1 | . . . . 1 Scanalyzers . | . . . . . Garrison Access . | . . . . . Terminal Hacks 9 | . 5 . 2 2 Robot Analysis 1 | . 1 . . . Prototype ID Bank 3 | . 2 . 1 . Branch Access Points 1 | . . . . 1 Hauler Manifests 1 | . 1 . . . Zone Layout 3 | . 1 . 1 1 Fabricator Hacks . | . . . . . Repair Station Hacks . | . . . . . Recycling Unit Hacks 1 | . . . . 1 Report Inventory 1 | . . . . 1 Scanalyzer . | . . . . . Garrison Access Hacks . | . . . . . Unauthorized Hacks 1 | . . . 1 . Terminals 1 | . . . 1 . Botnet 1 | . . . 1 . Fabricators . | . . . . . Repair Stations . | . . . . . Recycling Units . | . . . . . Scanalyzers . | . . . . . Garrison Access . | . . . . . Data Cores Recovered . | . . . . . Used . | . . . . . Hacking Detections 7 | . 2 . 2 3 Full Trace Events 3 | . 1 . . 2 Feedback Events . | . . . . . Feedback Blocked . | . . . . . Robot Schematics Acquired . | . . . . . Robots Built . | . . . . . Matter . | . . . . . Time . | . . . . . Total Robot Build Rating . | . . . . . Part Schematics Acquired . | . . . . . Parts Built . | . . . . . Matter . | . . . . . Time . | . . . . . Total Part Build Rating . | . . . . . Parts Repaired . | . . . . . Time . | . . . . . Parts Recycled . | . . . . . Recycled Matter . | . . . . . Retrieved Matter . | . . . . . Retrieved Components . | . . . . . Parts Scanalyzed . | . . . . . Part Schematics Acquired . | . . . . . Parts Damaged . | . . . . . Bothacking | -11 -10 -10 -9 -8 ------------ Run | Scr Mat Min Mat Mat Used RIF Installer . | . . . . . Robots Hacked . | . . . . . Non-combat . | . . . . . Combat . | . . . . . Robot Hacks Applied . | . . . . . Relay Couplers Released . | . . . . . Robots Rewired . | . . . . . Allies Hacked . | . . . . . Hacks Repelled . | . . . . . Allies | -11 -10 -10 -9 -8 -------- Run | Scr Mat Min Mat Mat Total Allies . | . . . . . Largest Group . | . . . . . Highest-Rated Group . | . . . . . Highest-Rated Ally . | . . . . . Total Orders . | . . . . . Ally Attacks . | . . . . . Total Damage . | . . . . . Kills . | . . . . . Allies Corrupted . | . . . . . Allies Melted . | . . . . . Intel | -11 -10 -10 -9 -8 ------- Run | Scr Mat Min Mat Mat Robot Analysis Total 1 | . 1 . . . Derelict Logs Recovered 1 | . . 1 . . Drone Launches . | . . . . . Drone Recoveries . | . . . . . Exploration | -11 -10 -10 -9 -8 ------------- Run | Scr Mat Min Mat Mat Turns Passed 1378 | 47 449 230 234 418 Spaces Moved 781 | 44 217 118 183 219 Core 3 | 3 . . . . Treads 131 | . 17 104 5 5 Legs . | . . . . . Wheels 537 | 41 200 14 178 104 Hover 110 | . . . . 110 Flight . | . . . . . Fastest Speed 50 | 50 80 100 120 102 Average Speed 115 | 77 99 152 121 112 Slowest Speed 180 | 80 180 160 180 180 Overloaded Moves . | . . . . . Propulsion Burnouts . | . . . . . Robots Hopped . | . . . . . Cave-ins Triggered . | . . . . . Exploration Rate (%) 24 | 4 43 25 21 28 Regions Visited 4 Branch Regions 1 Pre-discovered Areas . | . . . . . Known Exits Taken . | . . . . . Unknown Exits Taken 4 | 1 1 1 1 . Scrap Searched . | . . . . . Spaces Dug 3 | . . . . 3 Terrain Destroyed 39 | . . 31 . 8 Melee 3 | . . . . 3 Projectile . | . . . . . AOE 36 | . . 31 . 5 Terrain Rammed . | . . . . . Walls Destroyed . | . . . . . Machines Disabled . | . . . . . Actions | -11 -10 -10 -9 -8 --------- Run | Scr Mat Min Mat Mat Total 1085 | 53 381 145 193 313 Wait 106 | . 90 1 . 15 Move 777 | 43 216 117 182 219 Hop . | . . . . . Pick Up 31 | 4 10 4 7 6 Fast Attach 17 | 6 5 . . 6 Attach 21 | . 2 3 2 14 Detach 3 | . 2 . . 1 Swap 13 | . 5 2 2 4 Drop 16 | . 11 2 . 3 Fire 88 | . 40 16 . 32 Melee 8 | . . . . 8 Ram 4 | . . . . 4 Kick . | . . . . . Crush 1 | . . . . 1 Escape Stasis . | . . . . . Rewire . | . . . . . Trap . | . . . . . Miscellaneous . | . . . . . Route ------- -11/Scrapyard -10/Materials -10/Mines -9/Materials -8/Materials History --------- Turn | Location | Event 30 | -11/Scrapyard | Discovered new exit (range 15) 48 | -11/Scrapyard | Entered Materials 306 | -10/Materials | Build established: Mutant 466 | -10/Materials | Discovered new exit (range 12) 497 | -10/Materials | Entered Mines 498 | -10/Mines | Assembled infested the area 570 | -10/Mines | Learned Materials emergency access door positions 706 | -10/Mines | Discovered new exit (range 12) 727 | -10/Mines | Entered Materials 727 | -9/Materials | Evolved 2 slots: Utility x2 870 | -9/Materials | Discovered new exit (range 8) 961 | -9/Materials | Entered another Materials area 961 | -8/Materials | Evolved 2 slots: Propulsion x1, Weapon x1 1193 | -8/Materials | Lost 9 parts (2n2u5w) 1230 | -8/Materials | Core integrity fell below 50% 1276 | -8/Materials | Lost 7 parts (1p2n1u3w) 1325 | -8/Materials | Core integrity fell below 20% 1379 | -8/Materials | Destroyed by Y-45 Defender with Beam Rifle Last Messages --------------- 01321_ Aerolev Unit destroyed. 01321_ System corrupted by crushing effect (+1). 01325_ Aerolev Unit destroyed. 01336_ Transmission Jammer destroyed. 01347_ O-16 Technician: "IFF HANDSHAKE FAILED. SECURING TERMINAL." 01348_ Connecting with Terminal... >>Layout(Zone) Retrieving Zone 5T layout... Downloaded map data. >>Access(Branch) No branch access points found. 01355_ O-16 Technician uses terminal to summon reinforcements. 01355_ ALERT: Hostiles spotted, dispatching reinforcements to Terminal M003. 01355_ O-16 Technician locks terminal. 01363_ Wheel destroyed. 01363_ Acquired Adv. Treads. 01369_ Imp. Sensor Array destroyed. 01377_ Adv. Treads destroyed. Map ----- +----------------------------------------------------+ | ???????????????? ########################## | | ???????????????? | | ??????????????? | | ??????????????? | | ??????????????? ############ | | ??????????????? #??????????? | | ?????????????????""" """ """ #??????????? | | ???????????????????"? """ """ #??????????? | | ?????????????????""" """ """ #??????????? | | ??????????????? +??????????? | | ??????????????? #??????????? | | ??????????????????#####+###### ##??????????? | | ?????????????????????????????# #???????????? | | ?????????????????????????????# #???????????? | | ?????????????????????????????# #???????????? | | ?????????????????????????????# #???????????? | | ?????????????????????????????# #???????????? | | ?????????????????????????????# #???????????? | | ?????????????????????????????# #???????????? | | ?????????????????????????????# #???????????? | | ?????????????????????#########/#????????##?? | | ?????????????????????# #????#### ### | | ?????????????????????# """ """ #????# | | ?????????????????????# """ """ #????# ] | | ??????????????######## """ """ #????# | | ??????????????# @ # ##???# | | ??????????????# ### ""T"" #???# !! | | ??????????????#YY g#?#! """"" ##???# !! | | ??????????????# Yg #?# ###### | | ??????????????# g #######+##### # | | ????########### "" # # ! | | ????# ! # "T # T + | | ????# # "" + """ ##### # | | ????# ; # """ #???########+#### | | ????# """ ###### """ ########## #?? | | ????# """ # #?? | | ????# """ # % #?? | | ????# "T" / ##+#####/###/####### ] #?? | | ????# # # # !#?######?? | | ????########### # """ """ # #????????? | | ???????????# # """ """ #% """ #????????? | | ???????????# # """ """ # """ #????????? | | ???????????####### # """ #????????? | | ?????????????????# # #????????? | | ?????????????????# ########????????? | | ?????????????????# #???????????????? | | ?????????????????###########???????????????? | | | | | | | +----------------------------------------------------+ Best States ------------- Heat Dissipation 45 Energy Generation 14 Energy Capacity 250 Matter Stores 300 Matter Capacity 300 Sight Range 16 Robot Scan Range 13 Terrain Scan Range 16 Terrain Scan Density 10 Jamming Range 8 Armor Coverage 450 Evasion (%) 44 Recoil Reduction 2 Item Schematics ----------------- None Robot Schematics ------------------ None Fabricated ------------ Nothing Alien Tech Used ----------------- None Achievements -------------- None Challenges ------------ None Game ------ Seed BehemothOpticalLance Manual? 0 Play Time 00:23:55 Cumulative 395.1 hours Start 2021.07.31 @ 04:44:42 End 2021.07.31 @ 05:07:09 Sessions 1 Manual Loads 0 Difficulty Rogue Special Mode None Game No. 58 Rogue 27 Adventurer 31 Explorer 0 Win Type - Total 22 Types 17/0/2/3/0/0/0/0/0 Lore% 62 Gallery% 76 Achievement% 57 Wizard Run 0 Options --------- ASCII 0 Keyboard 0 Movement Arrows Keybinds 0 Fullscreen 1 Font 20/Terminus Map View 66x50 Tactical HUD 1 Map Filters NONE Filters NONE Steam 1 RUN: 2ecdab6b-0573-4488-8153-9484476adbac